bitfinex/quotes_ETHUSD_20250529
["timestamp","ask_amount","ask_price","bid_price","bid_amount"]
[1748493698844,1.6145,2719.7,2717.9,3.67931123]
[1748493699047,1.6145,2719.7,2718.0,0.36793112]
[1748493699255,3.67701132,2719.6,2718.3,3.67876406]
[1748493699434,3.67759895,2719.2,2718.3,3.67868116]
[1748493699747,3.67701132,2719.6,2718.9,3.67789772]
[1748493699947,1.6145,2719.7,2719.1,3.67759465]
[1748493700244,0.8145,2720.2,2718.7,1.875]
[1748493700443,0.8145,2720.2,2718.8,0.2675]
[1748493700628,3.67642456,2720.1,2719.4,3.67719105]
[1748493700829,0.8145,2720.8,2719.8,3.67661588]
[1748493701000,0.8145,2720.8,2719.5,3.67703504]
[1748493701227,3.67575028,2720.6,2719.6,3.67701132]
[1748493701433,3.6757147,2720.6,2719.6,3.67701132]
[1748493701641,0.8145,2720.8,2719.5,1.53543532]
[1748493701842,0.8145,2720.8,2719.5,0.8]
[1748493702047,0.791,2721.5,2720.9,3.6752545]
[1748493702244,5.54769391,2722.8,2721.1,3.6749678]
[1748493702245,3.67399961,2721.9,2721.1,3.6749678]
[1748493702478,4.46477312,2722.0,2720.4,3.67593001]
[1748493702479,0.791,2722.0,2720.4,3.67593001]
[1748493702659,3.6720111,2723.4,2720.4,3.67593001]
[1748493702660,0.781,2722.9,2720.9,0.7556]
[1748493702976,0.781,2722.9,2720.9,2.55268563]
[1748493703180,0.781,2722.9,2720.9,0.7556]
[1748493703363,3.67289274,2722.7,2720.6,2.116169]
[1748493703562,3.67355999,2722.2,2720.9,3.67525451]
[1748493703764,0.781,2722.5,2721.6,3.674189]
[1748493703972,0.781,2722.5,2720.9,1.79708563]
[1748493703973,3.67340305,2722.3,2720.9,1.79708563]
[1748493704164,0.781,2722.5,2721.0,1.874]
[1748493704375,0.8092,2723.0,2721.5,3.67444424]
[1748493704543,0.8092,2723.0,2721.4,1.79708563]
[1748493704544,3.67259368,2722.9,2721.6,3.67430922]
[1748493704738,3.67427229,2721.7,2720.6,0.514]
[1748493704981,3.67427229,2721.7,2720.5,0.7912]
[1748493704982,3.67430922,2721.6,2720.8,3.67535213]
[1748493705282,5.167,2722.4,2720.5,0.7912]
[1748493705283,3.67373585,2722.1,2720.5,0.7912]
[1748493705480,5.164,2722.5,2721.3,3.6746603]
[1748493705696,0.7825,2722.9,2721.4,3.67457243]
[1748493705697,3.67359258,2722.2,2721.4,3.67457243]
[1748493705906,0.36735926,2722.1,2721.7,3.67417306]
[1748493706196,9.61312848,2722.9,2720.0,0.7912]
[1748493706197,0.7825,2722.0,2720.0,0.7912]
[1748493706430,0.7825,2722.0,2720.6,3.67556025]
[1748493706431,3.67390425,2721.9,2720.6,3.67556025]
[1748493706640,3.67506523,2721.1,2720.3,3.67605089]
[1748493706930,3.675097,2721.1,2720.2,3.67620027]
[1748493707080,3.67430922,2721.6,2720.2,3.67620027]
[1748493707081,3.67430922,2721.6,2720.3,3.67597521]
[1748493707436,3.67467091,2721.4,2720.6,3.67560235]
[1748493707615,3.67467091,2721.4,2720.6,3.67553256]
[1748493707814,3.67467091,2721.4,2720.7,3.67543947]
[1748493707981,3.67458794,2721.4,2720.7,3.67543947]
[1748493708182,3.67421035,2721.7,2720.8,3.67538388]
[1748493708443,0.36742104,2721.6,2721.0,3.67502921]
[1748493708598,3.67404938,2721.8,2720.5,3.67579489]
[1748493708801,4.45627354,2722.0,2720.4,3.67584667]
[1748493708802,0.7825,2722.0,2720.4,3.67586386]
[1748493708997,0.7825,2722.0,2721.2,3.67475712]
[1748493708998,3.67399553,2721.9,2721.2,3.67475712]
[1748493709401,3.67399553,2721.9,2721.1,3.67493835]
[1748493709684,0.7825,2722.0,2720.7,0.7724]
[1748493709879,3.67399028,2721.9,2720.7,0.7724]
[1748493710115,0.44564903,2721.9,2720.8,0.26464]
[1748493710295,0.8186,2722.6,2721.0,3.67511944]
[1748493710512,0.8186,2722.6,2721.9,3.67378219]
[1748493710686,5.124,2723.1,2721.3,3.67467802]
[1748493710687,3.67264996,2722.9,2722.1,3.67351894]
[1748493710884,3.67288647,2722.7,2721.9,3.67378966]
[1748493711100,0.36728865,2722.7,2721.3,0.7724]
[1748493711382,3.67296238,2722.6,2721.4,3.67452653]
[1748493711612,3.67242012,2723.0,2721.4,13.342524]
[1748493711930,0.8186,2723.1,2721.3,6.24418977]
[1748493711931,0.8186,2723.1,2721.8,3.6739498]
[1748493712218,0.8186,2723.1,2721.3,0.7724]
[1748493712219,3.67277825,2722.8,2721.3,0.7724]
[1748493712380,3.6728257,2722.7,2721.5,3.67444424]
[1748493712582,0.8186,2723.1,2721.5,3.67437207]
[1748493712820,0.8186,2723.1,2721.4,2.31834856]
[1748493712821,3.6725379,2723.0,2721.6,3.67430922]
[1748493713033,3.67288825,2722.7,2721.8,3.67403923]
[1748493713198,3.67288825,2722.7,2722.0,3.67368048]
[1748493713537,4.12169781,2722.9,2721.1,5.548916]
[1748493713538,0.44911379,2722.9,2721.1,5.548916]
[1748493713682,3.67326091,2722.4,2721.2,3.67479556]
[1748493713898,0.44911379,2722.9,2721.4,0.44471956]
[1748493714099,0.8186,2723.1,2721.4,0.44471956]
[1748493714100,0.8186,2723.1,2722.3,3.67334633]
[1748493714311,0.8186,2723.1,2722.4,3.67322836]
[1748493714312,4.49094201,2723.1,2722.4,3.67322836]
[1748493714514,0.8186,2723.1,2722.5,3.67307217]
[1748493714810,1.874,2724.0,2721.5,5.47152987]
[1748493714811,1.874,2724.0,2722.4,3.67319851]
[1748493715019,0.9805,2723.9,2722.7,3.67273196]
[1748493715259,0.9805,2723.9,2722.2,4.47502468]
[1748493715260,0.9805,2723.9,2722.8,3.67268516]
[1748493715417,0.9805,2723.9,2722.7,3.67272566]
[1748493715418,3.67180693,2723.5,2722.7,3.67272566]
[1748493715607,8.9805,2723.9,2722.2,4.4750734]
[1748493715805,0.9805,2723.9,2722.2,0.8016]
[1748493716044,0.65256667,2723.8,2722.2,0.8016]
[1748493716385,0.65256667,2723.8,2719.4,1.79708563]
[1748493716386,4.46767926,2721.4,2719.4,1.79708563]
[1748493716535,4.4676875,2721.4,2720.3,3.676014]
[1748493716733,4.46768705,2721.4,2720.3,3.67597237]
[1748493716939,3.67471429,2721.3,2719.8,3.67665538]
[1748493717242,3.67498438,2721.1,2720.0,3.67642433]
[1748493717444,4.12164411,2721.2,2720.1,3.67623431]
[1748493717867,0.7931,2721.4,2719.9,0.36766554]
[1748493718050,3.67472055,2721.3,2720.4,3.67589976]
[1748493718251,3.67472055,2721.3,2719.9,4.04422008]
[1748493718252,3.67472055,2721.3,2720.5,3.675792]
[1748493718492,4.46772367,2721.4,2720.6,3.67553717]
[1748493718784,4.46772367,2721.4,2720.5,0.3675792]
[1748493718785,0.7931,2721.4,2720.5,0.3675792]
[1748493718995,3.67479956,2721.3,2720.5,3.67574647]
[1748493719194,4.46777382,2721.4,2720.6,3.67565221]
[1748493719398,0.7931,2721.4,2720.7,3.67543961]
[1748493719551,3.67370827,2722.1,2720.7,3.67543961]
[1748493719552,3.67457855,2721.5,2720.7,3.67543961]
[1748493719753,3.67459531,2721.4,2720.7,0.73511745]
[1748493719998,3.67431159,2721.6,2720.3,2.6507]
[1748493719999,3.6740426,2721.8,2720.3,2.6507]
[1748493720276,3.67442538,2721.6,2720.8,3.67537936]
[1748493720479,0.8059,2722.3,2720.7,1.79708563]
[1748493720683,0.8059,2723.1,2721.2,1.79708563]
[1748493720893,0.8059,2723.1,2721.0,10.0]
[1748493720894,0.8059,2723.1,2721.9,0.753]
[1748493721051,4.47830913,2723.1,2722.3,3.67324606]
[1748493721255,4.34282977,2723.7,2722.0,1.873]
[1748493721256,0.7843,2723.6,2722.0,1.873]
[1748493721564,0.7843,2723.6,2722.4,10.0]
[1748493721762,3.67007107,2724.8,2722.4,10.0]
[1748493721763,0.7843,2724.4,2722.5,0.7508]
[1748493721980,3.67107362,2724.0,2723.0,3.67237646]
[1748493722151,3.67168455,2723.6,2722.5,0.7508]
[1748493722351,3.67080243,2724.2,2722.6,3.67291754]
[1748493722618,5.107,2724.3,2721.4,0.514]
[1748493722619,0.7843,2723.2,2721.4,0.514]
[1748493722765,5.8962,2723.1,2721.4,4.18853388]
[1748493722964,0.95683973,2723.0,2721.4,0.41885339]
[1748493723310,3.67266072,2722.9,2722.1,3.67363091]
[1748493723608,3.67259527,2722.9,2721.9,3.67379366]
[1748493723775,3.67259527,2722.9,2721.7,0.7538]
[1748493723776,3.67242012,2723.0,2722.3,3.67327028]
[1748493723978,3.67242012,2723.0,2721.7,4.42787192]
[1748493723979,0.7912,2723.1,2721.8,10.0]
[1748493724178,0.7912,2724.2,2722.4,0.7538]
[1748493724376,0.7912,2724.2,2722.5,5.096]
[1748493724377,4.4620869,2724.2,2722.5,5.096]
[1748493724576,0.7912,2724.2,2722.9,3.67255499]
[1748493724806,0.7912,2724.2,2723.6,3.67150628]
[1748493725019,3.67024233,2724.7,2723.1,3.67228526]
[1748493725163,3.67024233,2724.7,2723.2,1.30832853]
[1748493725164,0.36702423,2724.6,2723.2,1.30832853]
[1748493725513,0.36702423,2724.6,2724.0,3.67106129]
[1748493725713,4.03737464,2724.6,2723.9,3.67120564]
[1748493725928,4.03737464,2724.6,2723.4,3.67182944]
[1748493725929,0.36702423,2724.6,2723.6,3.6716111]
[1748493726206,0.7912,2725.1,2724.1,3.67085134]
[1748493726207,3.67002019,2724.8,2724.1,3.67085134]
[1748493726394,0.7912,2725.1,2723.3,3.3242]
[1748493726395,0.7912,2725.1,2724.6,3.6702081]
[1748493726590,0.7912,2725.1,2724.5,3.67035139]
[1748493726765,0.7912,2725.1,2724.1,0.8283]
[1748493726971,3.66919259,2725.4,2724.7,3.67002921]
[1748493727170,0.44284926,2725.3,2724.3,3.67066769]
[1748493727368,4.11221067,2725.3,2724.2,1.872]
[1748493727676,0.44284926,2725.3,2724.3,3.67064251]
[1748493727880,3.6695518,2725.2,2724.5,3.67030026]
[1748493728195,3.6696828,2725.1,2724.3,3.67058103]
[1748493728393,4.11217413,2725.3,2724.2,5.54279806]
[1748493728394,0.36696828,2725.0,2724.2,1.872]
[1748493728821,3.66958623,2725.2,2724.4,3.67041712]
[1748493728993,3.66958623,2725.2,2724.2,5.54280126]
[1748493728994,3.66945743,2725.2,2724.5,3.6703563]
[1748493729481,3.66936178,2725.3,2724.6,3.67025474]
[1748493729809,3.6693455,2725.3,2724.6,3.6702393]
[1748493730014,0.7593,2725.5,2724.2,1.872]
[1748493730208,4.42846236,2725.5,2724.6,3.67014542]
[1748493730408,3.66948745,2725.2,2724.5,3.67031024]
[1748493730615,3.66918617,2725.4,2724.5,3.67034452]
[1748493730785,3.66946703,2725.2,2724.5,3.67034452]
[1748493731117,3.66918617,2725.4,2724.1,0.8283]
[1748493731338,0.7593,2725.5,2724.1,0.8283]
[1748493731339,3.66995899,2724.9,2724.1,0.8283]
[1748493731670,3.66961574,2725.1,2724.1,0.8283]
[1748493732013,3.66961574,2725.1,2724.4,3.67040513]
[1748493732217,3.66945545,2725.2,2724.5,3.67036268]
[1748493732374,3.66945545,2725.2,2724.4,3.67053277]
[1748493732375,0.77816354,2725.1,2724.4,3.67053277]
[1748493732590,0.77816354,2725.1,2724.1,4.49919501]
[1748493732792,3.66937741,2725.3,2724.6,3.67018498]
[1748493732991,0.7593,2725.5,2724.2,3.67080243]
[1748493733200,3.66927266,2725.4,2724.1,0.8283]
[1748493733402,3.66926573,2725.4,2724.7,3.67002115]
[1748493733602,3.66926573,2725.4,2724.2,3.67080243]
[1748493733603,0.7596,2725.2,2723.4,9.2512]
[1748493733805,0.7596,2725.2,2723.4,12.40898714]
[1748493733806,3.6695901,2725.1,2723.4,12.40898714]
[1748493734107,3.67029838,2724.6,2723.9,3.6711191]
[1748493734507,5.7756,2725.2,2723.5,3.67174591]
[1748493734826,3.67031135,2724.6,2723.9,3.67114772]
[1748493735029,3.66972477,2725.0,2724.2,3.67072049]
[1748493735191,3.66994698,2724.9,2724.2,3.67069675]
[1748493735390,4.03702651,2724.8,2724.2,3.67069675]
[1748493735588,0.3669947,2724.8,2723.8,3.67128345]
[1748493735843,0.3669947,2724.8,2723.5,3.67174591]
[1748493736043,0.3669947,2724.8,2724.3,3.67060343]
[1748493736353,0.3669947,2724.8,2724.3,3.6706525]
[1748493736839,0.3669947,2724.8,2724.3,3.67065772]
[1748493737050,0.3669947,2724.8,2723.5,3.67174591]
[1748493737051,0.7596,2725.2,2724.8,3.66988897]
[1748493737410,0.7596,2725.2,2724.3,1.824]
[1748493737623,0.7596,2725.2,2724.7,3.67003198]
[1748493737821,1.20248051,2725.2,2724.3,5.49461794]
[1748493738021,1.20248051,2725.2,2724.3,1.824]
[1748493738234,0.7596,2725.2,2724.6,3.67013741]
[1748493738434,0.7596,2725.2,2724.3,1.824]
[1748493738435,0.7596,2725.2,2724.8,3.66999022]
[1748493738737,3.66892974,2725.6,2724.9,3.66975716]
[1748493738940,3.66921096,2725.4,2724.8,3.6699057]
[1748493739253,0.73381407,2725.4,2724.4,3.67050273]
[1748493739397,3.66954512,2725.2,2724.5,3.67038607]
[1748493739594,0.8016,2725.6,2724.2,0.8253]
[1748493739841,4.4706103,2725.6,2724.2,4.49606011]
[1748493740043,0.44706103,2725.5,2724.9,3.66982594]
[1748493740243,0.44706103,2725.5,2725.0,3.66964926]
[1748493740460,0.44706103,2725.5,2725.1,3.66954766]
[1748493740665,0.44706103,2725.5,2725.0,3.66964926]
[1748493740666,0.8016,2725.6,2725.0,3.66972048]
[1748493740828,0.8016,2725.6,2725.1,3.66957163]
[1748493741031,0.8016,2725.6,2725.0,3.66964138]
[1748493741228,0.8016,2725.6,2725.1,3.66956761]
[1748493741523,2.83314553,2726.0,2725.1,0.36695676]
[1748493741707,2.83314553,2726.0,2725.1,1.26864481]
[1748493741907,2.83314553,2726.0,2724.8,8.61999412]
[1748493741908,2.83314553,2726.0,2725.8,3.66857539]
[1748493742137,2.83314553,2726.0,2724.9,0.8688]
[1748493742138,2.83314553,2726.0,2725.6,3.66883288]
[1748493742653,2.83314553,2726.0,2725.5,3.66904729]
[1748493742835,2.83314553,2726.0,2725.1,3.66956359]
[1748493742836,3.66887162,2725.7,2725.1,3.66956359]
[1748493743023,3.66887162,2725.7,2724.9,5.44083809]
[1748493743024,0.73373848,2725.7,2724.9,1.771]
[1748493743219,2.83314553,2726.0,2724.9,1.771]
[1748493743559,2.83314553,2726.0,2725.5,3.66896925]
[1748493743912,2.83314553,2726.0,2725.2,3.66938747]
[1748493744160,2.83314553,2726.0,2725.7,3.66869523]
[1748493744469,2.83314553,2726.0,2725.0,3.66968964]
[1748493744747,1.97964553,2726.0,2725.9,3.66851315]
[1748493746652,1.97964553,2726.0,2725.5,3.66899519]
[1748493746960,1.97964553,2726.0,2724.9,0.806]
[1748493747107,1.97964553,2726.0,2724.7,0.514]
[1748493747108,4.49440548,2725.9,2724.7,0.514]
[1748493747308,3.66864773,2725.8,2725.0,3.66963228]
[1748493747654,1.02376455,2725.9,2724.5,0.806]
[1748493747922,4.69235488,2725.9,2725.2,3.66935798]
[1748493748120,1.02376455,2725.9,2724.5,0.806]
[1748493748321,1.02376455,2725.9,2725.3,3.66921019]
[1748493748322,0.30034101,2725.8,2725.3,3.66921019]
[1748493748519,0.30034101,2725.8,2724.7,3.67012882]
[1748493748718,0.8258,2725.9,2724.7,3.67012882]
[1748493748948,0.8258,2725.9,2725.1,3.6695901]
[1748493749149,0.8258,2725.9,2724.8,3.66999412]
[1748493749352,0.8258,2725.9,2724.7,3.67012882]
[1748493749551,0.8258,2725.9,2724.6,0.93914879]
[1748493749739,1.97964553,2726.0,2725.2,3.66940907]
[1748493749922,1.97964553,2726.0,2725.7,3.66865685]
[1748493750135,1.97964553,2726.0,2725.7,3.66873636]
[1748493750321,1.97964553,2726.0,2724.7,1.54155084]
[1748493750322,1.97964553,2726.0,2725.9,3.66851315]
[1748493752154,1.97964553,2726.0,2725.3,3.66925607]
[1748493752155,1.97964553,2726.0,2725.2,0.8016]
[1748493752342,1.97964553,2726.0,2725.7,3.66874336]
[1748493752517,1.97964553,2726.0,2725.7,3.66872039]
[1748493752723,1.97964553,2726.0,2725.6,3.66885702]
[1748493753055,1.97964553,2726.0,2725.7,3.66875576]
[1748493753252,1.97964553,2726.0,2725.0,3.66960161]
[1748493753253,3.66886142,2725.7,2725.0,3.66960161]
[1748493753473,3.66901258,2725.6,2724.8,3.66998922]
[1748493753766,0.7959,2725.9,2725.1,3.66958073]
[1748493753767,3.66883846,2725.7,2725.1,3.66958073]
[1748493753969,3.66877124,2725.8,2725.0,3.66967358]
[1748493754170,0.44646712,2725.7,2724.5,4.867]
[1748493754392,0.7959,2725.9,2725.3,3.66925262]
[1748493754878,0.7959,2725.9,2724.3,0.8567]
[1748493755240,2.17761008,2726.0,2724.5,3.67029173]
[1748493755241,0.8319,2725.1,2724.5,3.67029173]
[1748493755573,0.8319,2725.1,2724.9,3.66974258]
[1748493755876,2.17761008,2726.0,2724.9,3.66974258]
[1748493755877,4.50043018,2725.9,2725.1,3.66949921]
[1748493756057,4.50043018,2725.9,2724.9,0.36697426]
[1748493756058,0.8319,2725.9,2725.4,3.66907869]
[1748493756261,0.8319,2725.9,2725.4,3.66909241]
[1748493756778,0.8319,2725.9,2725.2,3.66933821]
[1748493756948,0.8319,2725.9,2725.0,3.66959847]
[1748493756949,4.33652498,2725.8,2725.0,3.66959847]
[1748493757147,3.66878233,2725.7,2724.5,3.67030497]
[1748493757464,3.66882383,2725.7,2725.0,3.66970651]
[1748493757665,0.8003,2725.3,2724.4,5.38852925]
[1748493757974,0.8003,2725.3,2724.8,3.66995784]
[1748493758176,1.24725226,2725.3,2724.8,3.66995784]
[1748493758474,1.24725226,2725.3,2723.5,10.0]
[1748493758674,3.66958882,2725.2,2724.0,1.666]
[1748493758885,3.6696865,2725.1,2724.4,3.67049331]
[1748493759067,4.4696645,2725.3,2724.1,3.67093719]
[1748493759252,3.66987048,2724.9,2724.2,3.6707537]
[1748493759453,0.36698705,2724.8,2723.3,4.837]
[1748493759651,0.8102,2724.6,2723.6,3.67149697]
[1748493759858,0.8102,2724.6,2724.0,3.67098365]
[1748493760156,0.8102,2724.6,2723.9,3.67118264]
[1748493760356,4.48054124,2724.6,2724.0,3.67106509]
[1748493760540,0.8102,2724.6,2723.9,3.6711507]
[1748493760746,0.8102,2724.6,2723.4,4.83]
[1748493760946,0.8102,2724.6,2724.0,3.67099241]
[1748493761157,0.8102,2724.6,2723.5,0.85019758]
[1748493761484,4.48048897,2724.6,2723.6,0.8389]
[1748493761692,0.8102,2724.6,2724.0,3.67099911]
[1748493761894,0.8102,2724.6,2723.6,0.8389]
[1748493761895,0.8102,2724.6,2724.4,3.6705109]
[1748493762188,0.8102,2724.6,2723.7,3.6714763]
[1748493762393,0.7877,2725.2,2724.7,3.67002438]
[1748493762591,0.7877,2725.2,2724.3,3.67062012]
[1748493762792,0.7877,2725.2,2724.8,3.6699166]
[1748493762966,0.7877,2725.2,2723.8,4.12237913]
[1748493762967,0.7877,2725.2,2725.0,3.66968164]
[1748493763293,0.7877,2725.9,2725.1,3.6695901]
[1748493763448,0.7877,2725.9,2724.4,4.47850666]
[1748493763449,4.8131653,2725.8,2725.0,3.66970843]
[1748493763649,3.66887844,2725.7,2724.9,3.66981029]
[1748493763962,3.66887844,2725.7,2724.4,0.8081]
[1748493763963,4.81313986,2725.8,2725.0,3.66969354]
[1748493764151,3.668923,2725.6,2724.4,4.47854555]
[1748493764353,3.66881867,2725.7,2725.0,3.66968011]
[1748493764707,0.48132981,2725.6,2725.0,3.66968011]
[1748493764908,3.6689201,2725.6,2725.0,3.66968011]
[1748493765104,3.668908,2725.7,2725.0,3.66964689]
[1748493765249,3.66894498,2725.6,2724.5,3.67039823]
[1748493765451,3.66884525,2725.7,2724.6,0.44784982]
[1748493765979,3.66884525,2725.7,2725.0,3.66960489]
[1748493766165,3.66884525,2725.7,2725.1,3.66957606]
[1748493766361,3.66884525,2725.7,2725.0,3.66967105]
[1748493766602,4.46904931,2725.6,2724.9,3.66979955]
[1748493766921,4.46904931,2725.6,2725.0,3.66969817]
[1748493767108,0.80008928,2725.6,2725.1,3.66958605]
[1748493767309,0.66339578,2725.8,2725.4,3.66915612]
[1748493767515,0.7877,2725.9,2725.4,3.66915612]
[1748493767686,0.7877,2725.9,2725.5,3.66902692]
[1748493767884,0.7877,2725.9,2725.0,3.66968479]
[1748493768088,0.7877,2725.9,2725.5,3.66904737]
[1748493768286,0.7877,2725.9,2725.7,3.66866335]
[1748493768626,1.97964553,2726.0,2725.5,3.66903971]
[1748493768794,1.97964553,2726.0,2725.2,3.66942391]
[1748493768996,5.64814348,2726.0,2725.4,3.66915554]
[1748493769225,5.64814348,2726.0,2725.4,3.66915813]
[1748493769226,6.57966473,2726.0,2725.4,3.66915813]
[1748493769385,2.91128078,2726.0,2724.8,7.2932]
[1748493769587,1.97964553,2726.0,2725.0,3.66972477]
[1748493769825,1.97964553,2726.0,2725.5,3.66904888]
[1748493770129,1.97964553,2726.0,2725.2,3.66945545]
[1748493770337,1.97964553,2726.0,2725.7,3.66870649]
[1748493770699,1.97964553,2726.0,2725.5,3.66901402]
[1748493770700,1.97964553,2726.0,2725.5,3.66891986]
[1748493770905,1.97964553,2726.0,2725.6,3.66884392]
[1748493771103,1.97964553,2726.0,2725.7,3.66877045]
[1748493771449,1.97964553,2726.0,2725.8,3.66854716]
[1748493771613,1.97964553,2726.0,2725.7,3.668727]
[1748493771930,1.97964553,2726.0,2725.2,3.66945545]
[1748493772587,1.97964553,2726.0,2725.9,3.66851315]
[1748493773631,1.97964553,2726.0,2725.6,0.8697]
[1748493773800,1.97964553,2726.0,2725.8,3.66860036]
[1748493773994,1.97964553,2726.0,2725.6,3.66885054]
[1748493774243,1.97964553,2726.0,2725.7,3.66877298]
[1748493774543,1.97964553,2726.0,2725.8,3.66862913]
[1748493775208,1.97964553,2726.0,2725.9,3.66851315]
[1748493776914,1.97964553,2726.0,2725.9,9.10722827]
[1748493777332,1.97964553,2726.0,2725.9,3.66851315]
[1748493778528,0.8027,2727.1,2725.8,6.11814246]
[1748493778529,3.66703337,2727.0,2726.1,3.66811295]
[1748493778847,4.46970585,2727.1,2725.8,2.4495]
[1748493779141,3.66725701,2726.9,2725.8,2.4495]
[1748493779300,3.66704894,2727.0,2726.3,3.66789543]
[1748493779500,0.44697489,2726.9,2726.3,3.6679496]
[1748493779747,4.11414282,2726.9,2726.2,3.66804892]
[1748493779952,0.8027,2727.1,2726.5,3.66759001]
[1748493780241,0.8027,2727.1,2726.3,3.6679428]
[1748493780242,4.46968091,2727.1,2726.4,3.6677794]
[1748493780649,4.46968091,2727.1,2725.8,2.4495]
[1748493780650,0.8027,2727.1,2725.8,2.4495]
[1748493780817,0.8027,2727.1,2725.9,3.66844131]
[1748493781003,3.66752647,2726.7,2726.0,3.66828901]
[1748493781579,3.66752647,2726.7,2725.8,3.66862031]
[1748493781580,3.66785913,2726.4,2725.8,3.66862031]
[1748493781751,3.66792225,2726.4,2725.7,3.66872076]
[1748493781946,0.8597,2726.5,2726.0,3.66828344]
[1748493782152,0.8597,2726.5,2725.5,3.66905155]
[1748493782153,0.8597,2726.5,2725.9,3.66845083]
[1748493782468,0.8391,2726.3,2725.4,3.6691247]
[1748493782774,4.50712504,2726.3,2724.9,1.09632901]
[1748493782979,0.8391,2726.3,2725.8,3.66863728]
[1748493783188,0.8391,2726.3,2726.0,3.66830748]
[1748493783382,0.8391,2726.3,2726.0,3.66828704]
[1748493783579,0.8391,2726.3,2725.4,4.668]
[1748493783750,0.8391,2726.3,2725.8,3.66851324]
[1748493784082,0.8391,2726.3,2725.8,3.66854066]
[1748493784283,0.8391,2726.3,2725.4,5.21645]
[1748493784672,0.8391,2726.3,2725.7,3.66865903]
[1748493785011,0.8238,2727.6,2726.5,0.8119]
[1748493785221,0.8238,2727.6,2726.6,6.05871391]
[1748493785499,0.8238,2727.6,2725.9,0.8119]
[1748493785500,8.33436113,2727.5,2725.9,0.8119]
[1748493785815,0.8238,2726.7,2725.5,1.333545]
[1748493785949,0.8238,2726.7,2725.6,10.6548995]
[1748493786146,0.8238,2726.7,2725.6,2.44777952]
[1748493786376,0.8238,2726.7,2726.5,3.66760237]
[1748493786587,0.8238,2726.7,2726.3,3.66789763]
[1748493786889,0.8238,2726.7,2726.4,3.66779294]
[1748493787204,0.8238,2726.7,2726.0,3.66828697]
[1748493787414,0.8238,2726.7,2725.6,0.6548995]
[1748493787710,3.66779636,2726.5,2725.6,3.66891693]
[1748493787851,3.66762821,2726.6,2725.9,3.66850377]
[1748493788053,0.44914282,2726.5,2725.9,3.66850377]
[1748493788404,0.44914282,2726.5,2725.8,3.66854669]
[1748493788405,4.11689435,2726.5,2725.8,3.66854669]
[1748493788550,3.66789577,2726.4,2725.4,0.54845]
[1748493788749,0.44914282,2726.5,2725.9,3.66849609]
[1748493788951,4.49127979,2726.7,2726.0,3.66829078]
[1748493789158,0.8238,2726.7,2726.1,3.66813535]
[1748493790090,4.49125262,2726.7,2726.0,3.66828573]
[1748493790395,4.49125262,2726.7,2725.4,0.54845]
[1748493790396,3.66793616,2726.4,2725.7,3.66870156]
[1748493790586,0.8238,2726.7,2725.8,3.66854579]
[1748493790587,0.36679362,2726.3,2725.8,3.66854579]
[1748493790753,0.8238,2726.7,2725.4,3.66918617]
[1748493790958,3.66760291,2726.6,2725.9,3.66842023]
[1748493791219,3.66772484,2726.5,2725.9,3.66842023]
[1748493791387,0.36677248,2726.4,2725.9,3.66842023]
[1748493791579,0.36677248,2726.4,2725.7,3.66877326]
[1748493791780,3.66779508,2726.5,2725.8,3.66855495]
[1748493791994,3.66786093,2726.4,2725.8,3.66855495]
[1748493792272,0.8655,2726.5,2725.6,1.79288002]
[1748493792571,4.53282939,2726.8,2725.6,3.66881148]
[1748493792822,0.8655,2726.8,2725.9,3.66846563]
[1748493792984,0.8655,2726.8,2726.6,3.6674954]
[1748493793197,3.66636165,2727.5,2726.7,3.66743682]
[1748493793198,0.8655,2727.4,2726.7,3.66743682]
[1748493793398,0.8655,2727.4,2725.9,6.28103906]
[1748493793399,3.66663,2727.3,2726.5,3.66768528]
[1748493793615,4.628,2727.6,2726.4,3.66776338]
[1748493793616,4.53256458,2727.0,2726.4,3.66776338]
[1748493793771,0.8655,2727.0,2726.4,3.66776338]
[1748493793970,0.8655,2727.0,2726.5,3.66762755]
[1748493794216,0.8655,2727.0,2726.4,3.66781121]
[1748493794383,4.53266329,2727.0,2726.3,3.66789545]
[1748493794584,1.73078831,2727.0,2725.9,0.8197]
[1748493794888,1.73078831,2727.0,2725.7,8.0]
[1748493794889,3.66728014,2726.9,2726.2,3.668109]
[1748493795112,4.53262963,2727.0,2726.3,3.66786182]
[1748493795113,4.53257815,2727.0,2726.3,3.66786182]
[1748493795414,0.8655,2727.0,2726.3,3.66786182]
[1748493795584,0.8655,2727.0,2726.4,3.66774763]
[1748493795786,0.8655,2727.0,2725.9,3.66847423]
[1748493796003,1.31874424,2727.0,2726.5,3.66763711]
[1748493796200,0.8655,2727.0,2726.5,3.66763711]
[1748493796511,0.8655,2727.0,2726.3,3.66789348]
[1748493796733,3.66726098,2726.9,2726.3,3.66796552]
[1748493796932,0.8655,2727.0,2726.4,3.66776764]
[1748493797495,4.53256404,2727.0,2726.2,3.66807103]
[1748493797717,0.4532564,2726.9,2726.3,3.66788033]
[1748493798038,0.4532564,2726.9,2726.4,3.66783875]
[1748493798399,4.53263851,2727.0,2725.9,3.66851315]
[1748493798400,0.8655,2727.0,2725.9,3.66851315]
[1748493798624,0.8655,2727.0,2726.2,3.66806836]
[1748493798896,0.8655,2727.0,2726.0,0.8691]
[1748493798897,0.8655,2727.0,2726.8,3.66720213]
[1748493799398,0.8655,2727.0,2726.0,0.8691]
[1748493799641,0.8655,2727.0,2726.4,3.66772044]
[1748493799825,4.5325372,2727.0,2726.4,3.66772044]
[1748493799999,0.8655,2727.0,2726.5,3.66770183]
[1748493800200,0.8655,2727.0,2726.6,3.66747441]
[1748493800635,0.8655,2727.0,2726.4,3.66781652]
[1748493800805,0.8655,2727.0,2725.8,3.66856665]
[1748493800806,3.66716784,2726.9,2725.8,3.66856665]
[1748493801014,3.66716784,2726.9,2725.3,4.56079445]
[1748493801015,3.66768557,2726.6,2725.9,3.66841765]
[1748493801212,3.66768557,2726.6,2725.4,3.66913651]
[1748493801213,3.66739534,2726.8,2725.4,3.66913651]
[1748493801511,3.66732121,2726.8,2726.1,3.66813077]
[1748493801734,4.48731856,2726.8,2726.0,3.66830855]
[1748493801933,0.81999735,2726.8,2725.8,3.66864773]
[1748493802139,0.8655,2727.4,2726.4,0.8915]
[1748493802448,0.8655,2727.4,2727.0,3.66702265]
[1748493802740,0.8655,2727.4,2727.0,3.66690862]
[1748493803294,0.8655,2727.4,2727.1,3.66682603]
[1748493804159,0.8655,2727.4,2727.0,3.6669746]
[1748493804445,1.31867402,2727.4,2726.4,0.8915]
[1748493804603,4.98520686,2727.4,2726.4,0.8915]
[1748493804806,1.31867402,2727.4,2726.4,0.8915]